fUSD/lending_fUSD_20250702
["ID","MTS","AMOUNT","RATE_DAILY","PERIOD"]
[369126105,1751491833509,-500.0,0.00025354,2]
[369126106,1751491833518,-300.0,0.00025354,2]
[369126107,1751491833528,-257.5731563,0.00025354,2]
[369126108,1751491833537,-500.0,0.00025354,2]
[369126109,1751491833549,-500.0,0.00025354,2]
[369126110,1751491833559,-1000.0,0.00025354,2]
[369126111,1751491833568,-300.0,0.00025354,2]
[369126112,1751491833578,-500.0,0.00025354,2]
[369126113,1751491833588,-1000.0,0.00025354,2]
[369126114,1751491833601,-500.0,0.00025354,2]
[369126115,1751491833611,-1000.0,0.00025354,2]
[369126116,1751491833620,-500.0,0.00025354,2]
[369126117,1751491833630,-1000.0,0.00025354,2]
[369126118,1751491833641,-500.0,0.00025354,2]
[369126119,1751491833651,-300.0,0.00025354,2]
[369126120,1751491833662,-500.0,0.00025354,2]
[369126121,1751491833672,-500.0,0.00025354,2]
[369126122,1751491833681,-500.0,0.00025354,2]
[369126123,1751491833692,-300.0,0.00025354,2]
[369126124,1751491833701,-500.0,0.00025354,2]
[369126125,1751491833710,-500.0,0.00025354,2]
[369126126,1751491833720,-500.0,0.00025354,2]
[369126127,1751491833730,-500.0,0.00025354,2]
[369126128,1751491833740,-500.0,0.00025354,2]
[369126129,1751491833750,-500.0,0.00025354,2]
[369126130,1751491833760,-500.0,0.00025354,2]
[369126131,1751491833770,-500.0,0.00025354,2]
[369126132,1751491833780,-151.0,0.00025354,2]
[369126133,1751491833789,-160.43314174,0.00025354,2]
[369126134,1751491833799,-500.0,0.00025354,2]
[369126135,1751491833809,-500.0,0.00025354,2]
[369126136,1751491833819,-247.43723805,0.00025354,2]
[369126137,1751491833828,-500.0,0.00025354,2]
[369126138,1751491833838,-500.0,0.00025354,2]
[369126139,1751491833848,-500.0,0.00025354,2]
[369126140,1751491833857,-500.0,0.00025354,2]
[369126141,1751491833867,-500.0,0.00025354,2]
[369126142,1751491833876,-500.0,0.00025354,2]
[369126143,1751491833886,-500.0,0.00025354,2]
[369126144,1751491833895,-500.0,0.00025354,2]
[369126145,1751491833905,-500.0,0.00025354,2]
[369126146,1751491833915,-500.0,0.00025354,2]
[369126147,1751491833924,-500.0,0.00025354,2]
[369126148,1751491833934,-668.65185757,0.00025354,2]
[369126149,1751491833944,-150.0,0.00025364,2]
[369126150,1751491833953,-594.0549317,0.00025373,2]
[369126151,1751491833963,-3115.51668799,0.00025409,2]
[369126152,1751491833976,-2058.0018855,0.00025409,2]
[369126153,1751491834004,-1751.02109537,0.00025409,2]
[369126154,1751491834020,-243.87008514,0.00025409,2]
[369126155,1751491834030,-150.0,0.00025415,2]
[369126156,1751491834039,-56.08331942,0.00025417,13]
[369126157,1751491834271,-860.66797599,0.00025417,13]
[369126158,1751491834281,-150.0,0.00025463,2]
[369126159,1751491834291,-2334.0157748,0.00025464,2]
[369126160,1751491834302,-5099.6251401,0.00025464,2]
[369126161,1751491834311,-150.0,0.00025511,2]
[369126162,1751491834321,-7708.68562875,0.00025519,2]
[369126163,1751491834331,-285.0,0.0002552,2]
[369126164,1751491834340,-500.0,0.00025529,2]
[369126165,1751491834350,-798.72,0.00025539,2]
[369126166,1751491834359,-2333.7492462,0.00025574,2]
[369126167,1751491834369,-150.0,0.00025584,2]
[369126168,1751491834378,-916.75129541,0.0002559,13]
[369126169,1751491834388,-3973.5064,0.00025595,2]
[369126170,1751491834397,-177.48142748,0.000256,2]
[369126171,1751491834407,-594.0549317,0.00025626,2]
[369126172,1751491834416,-150.0,0.00025666,2]
[369126173,1751491834425,-170.94,0.00025666,2]
[369126174,1751491834434,-150.0,0.00025689,2]
[369126175,1751491834443,-4754.16710536,0.00025694,2]
[369126176,1751491834452,-4450.95963061,0.00025695,2]
[369126177,1751491834463,-414.0,0.00025695,2]
[369126180,1751491837827,-758.96506545,0.00025695,2]
[369126181,1751491837887,-7468.10409917,0.00025695,2]
[369126182,1751491837898,-2415.25992781,0.00025695,2]
[369126183,1751491837911,-40750.444,0.00025695,2]
[369126184,1751491837923,-8355.461751,0.00025695,2]
[369126185,1751491837937,-34075.02662596,0.00025695,2]
[369126186,1751491837948,-1933.56419804,0.000257,2]
[369126347,1751491839824,-566.43580196,0.000257,2]
[369126350,1751491839835,-1000.0,0.000257,2]
[369126351,1751491839845,-164.63126755,0.00025726,2]
[369126353,1751491839854,-198.0,0.00025726,2]
[369126356,1751491839863,-198.0,0.00025757,2]
[369126358,1751491839873,-860.70266942,0.00025762,13]
[369126360,1751491839884,-56.04862599,0.00025762,13]
[369126362,1751491839894,-198.0,0.00025766,2]
[369126364,1751491839903,-693.001374,0.00025789,2]
[369126377,1751491840023,-819.47793847,0.00025789,2]
[369126390,1751491840138,-1402.78445748,0.00025789,2]
[369126397,1751491840199,-336.0581857,0.00025789,2]
[369126399,1751491840212,-545.84384435,0.00025789,2]
[369126401,1751491840221,-28717.8321628,0.0002579,2]
[369126402,1751491840231,-150.0,0.00025791,2]
[369126404,1751491840240,-1500.0,0.000258,2]
[369126406,1751491840250,-79056.12178202,0.000258,4]
[369126408,1751491840261,-14019.08100738,0.000258,4]
[369126413,1751491840292,-607.46602351,0.000258,4]
[369126704,1751491843324,-15184.05345322,0.000258,4]
[369126706,1751491843334,-345.65,0.00025826,2]
[369126708,1751491843343,-300.0,0.00025826,2]
[369126710,1751491843352,-331.26,0.00025826,2]
[369126712,1751491843361,-163.98,0.00025826,2]
[369126714,1751491843371,-456.54,0.00025826,2]
[369126716,1751491843380,-301.34,0.00025826,2]
[369126718,1751491843389,-150.0,0.00025826,2]
[369126720,1751491843398,-300.0,0.00025826,2]
[369126722,1751491843408,-150.0,0.00025831,2]
[369126724,1751491843417,-5127.73002603,0.00025858,2]
[369126726,1751491843426,-207.00098199,0.00025859,2]
[369126758,1751491843733,-825.50651092,0.00025859,2]
[369126760,1751491843744,-173.96985912,0.00025859,2]
[369126762,1751491843753,-1944.02294872,0.00025859,2]
[369126919,1751491845654,-643.7850038,0.00025859,2]
[369126931,1751491845763,-26130.02421028,0.00025859,2]
[369126932,1751491845772,-421.7,0.00025859,3]
[369126934,1751491845782,-5000.0,0.00025869,2]
[369126936,1751491845791,-222.16,0.00025879,2]
[369126938,1751491845801,-524.11578972,0.00025889,2]
[369127836,1751491959263,176.83,0.00024937,120]
[369127837,1751492198527,-394.39736012,0.00024163,2]
[369127838,1751492198552,-1880.215,0.000245,7]
[369127839,1751492198577,-170.251,0.000245,7]
[369127840,1751492198602,-250.0,0.00024564,2]
[369127841,1751492198628,-164.63126752,0.000249,2]
[369127842,1751492198657,-876.18485881,0.000249,12]
[369127843,1751492198682,-173.96985912,0.000249,2]
[369127844,1751492198706,-200.0,0.00024917,2]
[369127845,1751492198735,-252.31,0.00024997,2]
[369127846,1751492198762,-300.0,0.00024998,2]
[369127847,1751492198788,-153.97811313,0.00024999,2]
[369127848,1751492198813,-202.20934277,0.00024999,2]
[369127849,1751492198838,-500.0,0.00024999,2]
[369127850,1751492198863,-226.74114555,0.00024999,2]
[369127851,1751492198888,-240.22466435,0.00024999,2]
[369127852,1751492198913,-20132.13674137,0.00024999,4]
[369127853,1751492198940,-61432.75064726,0.00025,4]
[369127880,1751492871083,1022.14,0.00027397,120]
[369127882,1751492927463,73.19058829,0.00013699,2]
[369127883,1751492927485,78.56941171,0.00013699,2]
[369127889,1751493032544,-389.9341405,0.00023198,2]
[369127890,1751493032564,-113.0658595,0.00023198,2]
[369127891,1751493032574,-200.0,0.00023649,7]
[369127892,1751493032584,-536.9341405,0.00023678,2]
[369127893,1751493032614,-986.37150948,0.00023678,2]
[369127894,1751493032643,-473.75986694,0.00023678,2]
[369127895,1751493032654,-681.1094078,0.00023678,2]
[369127896,1751493032665,-845.37716439,0.00023678,2]
[369127906,1751493033114,-448.342558,0.00023678,2]
[369127907,1751493033126,-1028.10535289,0.00023678,2]
[369127908,1751493033136,-595.93,0.00023714,2]
[369127909,1751493033146,-846.97869684,0.000239,10]
[369127910,1751493033155,-150.0,0.00023972,2]
[369127911,1751493033165,-150.0,0.00023987,2]
[369127912,1751493033175,-155.55,0.00024025,2]
[369127913,1751493033185,-1200.0,0.00024106,2]
[369127914,1751493033194,-846.97869661,0.00024107,10]
[369127915,1751493033204,-129.53823983,0.00024148,2]
[369127918,1751493037961,-20.46176017,0.00024148,2]
[369127919,1751493037971,-846.97869661,0.00024314,10]
[369127920,1751493037981,-150.0,0.00024355,2]
[369127921,1751493037990,-300.0,0.00024399,2]
[369127922,1751493038001,-707.57700936,0.000244,2]
[369127923,1751493038011,-928.76809837,0.000244,2]
[369127924,1751493038021,-902.29993785,0.000244,2]
[369127925,1751493038033,-611.70497818,0.000244,2]
[369127927,1751493038233,-9.35993512,0.000244,2]
[369127929,1751493038338,-944.83793928,0.000244,2]
[369127930,1751493038349,-4614.9570234,0.00024426,2]
[369127931,1751493038359,-1504.172,0.00024449,7]
[369127932,1751493038368,-170.25222995,0.00024449,7]
[369127933,1751493038378,-23900.0,0.0002445,2]
[369127934,1751493038388,-500.0,0.00024473,2]
[369127935,1751493038397,-500.0,0.00024473,2]
[369127936,1751493038407,-533.9800184,0.00024473,2]
[369127937,1751493038417,-500.0,0.00024473,2]
[369127938,1751493038427,-500.0,0.00024473,2]
[369127939,1751493038436,-604.37706485,0.00024473,2]
[369127940,1751493038446,-500.0,0.00024473,2]
[369127942,1751493038456,-575.01448522,0.00024473,2]
[369127944,1751493038466,-152.25,0.0002449,2]
[369127946,1751493038475,-152.25,0.0002449,2]
[369127948,1751493038487,-152.25,0.0002449,2]
[369127950,1751493038496,-86493.8592389,0.00024499,4]
[369127962,1751493038609,-1539.5,0.00024499,4]
[369127974,1751493038717,-974.04141616,0.00024499,4]
[369128110,1751493040006,-1717.92958918,0.00024499,4]
[369128112,1751493040018,-2628.26891,0.00024499,4]
[369128140,1751493040280,-3422.68038895,0.00024499,4]
[369128484,1751493043897,-2603.94750001,0.00024499,4]
[369128710,1751493046037,-463.5088717,0.00024499,4]
[369128717,1751493046093,-2036.2857975,0.00024499,4]
[369129448,1751493061623,233.5,0.00026757,120]
[369129451,1751493087023,268.82,0.00026044,120]
[369129452,1751493148956,516.0,0.00022198,2]
[369129454,1751493187825,-3081.0,0.000226,5]
[369129457,1751493239483,-532.0,0.000224,5]
[369129458,1751493239901,524.0,0.00022198,2]
[369129464,1751493345116,-10000.0,0.00023648,2]
[369129466,1751493445103,473.53,0.00027397,120]
[369129477,1751493922331,-518.0,0.00022561,2]
[369129478,1751493925739,-5000.0,0.00023074,2]
[369129479,1751493926235,151.76,0.00013699,2]
[369129481,1751493945241,-426.06,0.00023146,2]
[369129482,1751493945263,-1157.72,0.00023165,2]
[369129491,1751494232147,-1200.0,0.0002296,2]
[369129492,1751494232157,-300.0,0.0002301,2]
[369129493,1751494232167,-2028.93,0.00023026,2]
[369129494,1751494232178,-200.0,0.0002306,2]
[369129495,1751494232188,-200.0,0.00023077,7]
[369129496,1751494232447,-213.52,0.00023083,2]
[369129497,1751494232487,-177.48142748,0.00023156,2]
[369129499,1751494232497,-150.0,0.00023256,2]
[369129501,1751494232506,-264.0,0.00023395,2]
[369129503,1751494232515,-300.0,0.00023395,2]
[369129504,1751494232525,-703.5,0.00023396,2]
[369129506,1751494232535,-156.587,0.00023396,2]
[369129508,1751494232545,-150.0,0.00023401,2]
[369129510,1751494232555,-150.0,0.00023445,2]
[369129512,1751494232564,-150.0,0.00023467,2]
[369129513,1751494232574,-150.0,0.00023484,2]
[369129514,1751494232584,-500.0,0.00023484,2]
[369129515,1751494232594,-500.0,0.00023484,2]
[369129516,1751494232604,-6159.05,0.00023648,2]
[369129517,1751494232618,-1000.0,0.00023668,2]
[369129518,1751494232627,-150.0,0.00023669,2]
[369129519,1751494232637,-216.0,0.00023689,3]
[369129521,1751494232646,-150.0,0.00023691,2]
[369129523,1751494232657,-463.0,0.000237,2]
[369129524,1751494232667,-463.0,0.000237,2]
[369129525,1751494232677,-150.0,0.00023736,2]
[369129526,1751494232687,-150.0,0.00023759,2]
[369129527,1751494232696,-518.0,0.00023763,2]
[369129528,1751494232706,-799.96,0.00023782,2]
[369129529,1751494232715,-233.5,0.00023784,2]
[369129530,1751494232725,-155.63,0.00023836,2]
[369129531,1751494232735,-878.52739328,0.000239,10]
[369129532,1751494232744,-500.0,0.000239,2]
[369129533,1751494232754,-150.0,0.00023969,2]
[369129534,1751494232763,-150.0,0.00023982,2]
[369129535,1751494232773,-799.96,0.00023982,2]
[369129536,1751494232783,-799.96,0.00023982,2]
[369129537,1751494232793,-150.0,0.00023991,2]
[369129538,1751494232802,-150.0,0.00023994,2]
[369129539,1751494232812,-513.52851391,0.00024,5]
[369129540,1751494232822,-150.0,0.00024007,2]
[369129541,1751494232832,-878.527393,0.00024107,10]
[369129542,1751494232843,-342.43,0.00024182,2]
[369129543,1751494232853,-934.68,0.00024182,2]
[369129544,1751494232863,-150.0,0.00024197,2]
[369129545,1751494232872,-150.0,0.00024198,2]
[369129546,1751494232883,-800.0,0.00024234,3]
[369129547,1751494232893,-4512.74047,0.0002425,2]
[369129548,1751494232902,-327.96,0.00024256,2]
[369129549,1751494232912,-150.0,0.00024258,2]
[369129550,1751494232921,-150.0,0.00024283,2]
[369129551,1751494232930,-774.0,0.00024305,2]
[369129552,1751494232940,-878.527393,0.00024314,10]
[369129553,1751494232949,-4153.46132106,0.00024392,2]
[369129554,1751494232958,-3089.77070736,0.00024392,2]
[369129555,1751494232967,-238.27664179,0.00024392,2]
[369129556,1751494232977,-163.27297011,0.00024392,2]
[369129557,1751494232992,-702.1707519,0.00024392,2]
[369129558,1751494233002,-150.0,0.00024452,2]
[369129559,1751494233012,-168.27,0.00024462,2]
[369129560,1751494233022,-211.0,0.00024465,2]
[369129561,1751494233032,-504.43141811,0.00024473,2]
[369129562,1751494233042,-500.0,0.00024473,2]
[369129563,1751494233052,-502.6492585,0.00024473,2]
[369129564,1751494233062,-500.0,0.00024473,2]
[369129565,1751494233071,-500.0,0.00024473,2]
[369129566,1751494233080,-151.0,0.00024477,2]
[369129567,1751494233090,-151.0,0.00024477,2]
[369129568,1751494233099,-151.0,0.00024477,2]
[369129569,1751494233108,-151.0,0.00024477,2]
[369129570,1751494233118,-151.0,0.00024477,2]
[369129571,1751494233127,-151.0,0.00024477,2]
[369129572,1751494233136,-151.0,0.00024477,2]
[369129573,1751494233147,-151.0,0.00024477,2]
[369129574,1751494233157,-151.0,0.00024477,2]
[369129575,1751494233167,-151.0,0.00024477,2]
[369129576,1751494233177,-151.0,0.00024477,2]
[369129577,1751494233187,-151.0,0.00024477,2]
[369129578,1751494233197,-152.25,0.00024482,2]
[369129579,1751494233208,-1433.5,0.00024482,2]
[369129580,1751494233218,-748.46169457,0.00024482,2]
[369129581,1751494233233,-685.03830543,0.00024482,2]
[369129582,1751494233244,-152.25,0.00024482,2]
[369129583,1751494233254,-481.71193788,0.0002449,2]
[369129584,1751494233275,-369.87487294,0.0002449,2]
[369129585,1751494233284,-151.0,0.0002449,2]
[369129586,1751494233295,-152.25,0.0002449,2]
[369129587,1751494233304,-884.12512706,0.00024492,4]
[369129588,1751494233316,-9181.94324362,0.00024492,4]
[369129589,1751494233325,-8189.9143638,0.00024492,4]
[369129590,1751494233337,-321.29154664,0.00024492,4]
[369129591,1751494233364,-704.02222373,0.00024492,4]
[369129592,1751494233375,-656.96427865,0.00024492,4]
[369129593,1751494233388,-1677.033,0.00024492,4]
[369129594,1751494233403,-2358.20721711,0.00024492,4]
[369129595,1751494233422,-498.0539241,0.00024492,4]
[369129596,1751494233434,-3131.49389417,0.00024492,4]
[369129597,1751494233446,-1110.33088506,0.00024492,4]
[369129598,1751494233466,-54262.10132446,0.00024492,4]
[369129599,1751494234160,-267.59430731,0.00024492,4]
[369129601,1751494238000,-3141.47679209,0.00022845,2]
[369129788,1751494240239,-902.68,0.00022845,2]
[369129800,1751494240356,-1085.80377393,0.00022845,2]
[369129838,1751494240722,-3615.07786098,0.00022845,2]
[369129840,1751494240731,-151.0,0.0002449,2]
[369129842,1751494240742,-567.72454055,0.0002449,2]
[369129844,1751494240751,-1150.06395427,0.00024492,4]
[369130254,1751494245241,-248.97291075,0.0002449,2]
[369130256,1751494245250,-567.72454055,0.0002449,2]
[369130258,1751494245259,-188580.05130269,0.00024492,4]
[369130262,1751494245285,-18167.00210553,0.00024492,4]
[369130265,1751494245312,-410218.97968101,0.00024492,4]
[369130344,1751494246054,-471.53,0.00023674,2]
[369130346,1751494246064,-4152.34761476,0.00024492,4]
[369130365,1751494246242,-10956.2,0.00024492,4]
[369130367,1751494246253,-490.0,0.00024492,4]
[369130371,1751494246281,-283.86227028,0.0002449,2]
[369130373,1751494246290,-35924.68944734,0.00024492,4]
[369130379,1751494246339,-219295.3475618,0.00024492,4]
[369130387,1751494246412,-2128.91946243,0.00024492,4]
[369130390,1751494246439,-11303.37679966,0.00024492,4]
[369131857,1751494327586,1000.0,0.00021419,2]
[369131858,1751494377397,460.0,0.00027397,120]
[369131859,1751494387922,1000.0,0.00021979,2]
[369131860,1751494388215,214.14780543,0.00022311,2]
[369131861,1751494388239,785.85219457,0.00022311,2]
[369131878,1751494632522,-151.0,0.00024492,7]
[369131879,1751494632559,-151.0,0.00024492,7]
[369131880,1751494632592,-151.0,0.00024492,7]
[369131881,1751494632626,-151.0,0.000245,7]
[369131882,1751494632670,-151.0,0.000245,7]
[369131883,1751494632709,-151.0,0.000245,7]
[369131884,1751494632745,-151.0,0.000245,7]
[369131885,1751494632780,-151.0,0.000245,7]
[369131886,1751494632820,-151.0,0.000245,7]
[369131887,1751494632853,-151.0,0.000245,7]
[369131888,1751494632887,-151.0,0.000245,7]
[369131889,1751494632919,-151.0,0.000245,7]
[369131890,1751494632951,-151.0,0.000245,7]
[369131891,1751494632983,-151.0,0.000245,7]
[369131892,1751494633016,-270.977174,0.000245,7]
[369131893,1751494633050,-270.977174,0.000245,7]
[369131894,1751494633089,-151.0,0.000245,7]
[369131895,1751494633124,-151.0,0.000245,7]
[369131896,1751494633158,-151.0,0.000245,7]
[369131897,1751494633192,-281.914392,0.000245,7]
[369131898,1751494633226,-321.528882,0.000245,7]
[369131899,1751494633262,-239.946814,0.000245,7]
[369131900,1751494633558,-81.582068,0.000245,7]
[369131901,1751494633593,-185.708966,0.000245,7]
[369131902,1751494633628,-185.708966,0.000245,7]
[369131903,1751494633668,-151.0,0.00024502,7]
[369131904,1751494633702,-151.0,0.00024502,7]
[369131905,1751494633738,-151.0,0.00024502,7]
[369131906,1751494633772,-151.0,0.00024519,7]
[369131907,1751494633812,-541.751089,0.00024519,7]
[369131908,1751494633845,-541.751089,0.00024519,7]
[369131909,1751494633880,-1335.611929,0.00024519,7]
[369131910,1751494633913,-1070.972043,0.00024519,7]
[369131911,1751494635451,-1047.569414,0.00024658,15]
[369131912,1751494789992,200.0,0.00023999,10]
[369131913,1751494804985,200.0,0.00023999,10]
[369131914,1751494815254,53.0,0.00024466,10]
[369131915,1751494892760,150.0,0.00022311,2]
[369131917,1751494898159,151.76,0.00013699,2]
[369131920,1751495079120,150.0,0.00022033,2]
[369131921,1751495113021,2246.86502257,0.00014,2]
[369131922,1751495113046,3484.47721714,0.00014,2]
[369131923,1751495113074,8000.0,0.00014,2]
[369131924,1751495113104,8000.0,0.00014,2]
[369131925,1751495113135,8000.0,0.00014,2]
[369131926,1751495113184,8000.0,0.00014,2]
[369131927,1751495113220,8000.0,0.00014,2]
[369131928,1751495113243,8000.0,0.00014,2]
[369131929,1751495113265,8000.0,0.00014,2]
[369131930,1751495113288,1144.16267855,0.00014,2]
[369131954,1751495244430,460.0,0.00027397,120]
[369131955,1751495244894,169.12443505,0.0001305,2]
[369131956,1751495305951,175.12,0.00026214,120]
[369131958,1751495328043,2201.80862016,0.00013368,2]
[369131960,1751495349880,3811.0,0.0002011,2]
[369131983,1751495432323,-150.0,0.00021941,2]
[369131984,1751495432333,-300.0,0.00022087,2]
[369131985,1751495432343,-300.0,0.00022234,2]
[369131986,1751495432352,-164.8,0.00022417,2]
[369131987,1751495432362,-175.12,0.00022469,2]
[369131988,1751495432372,-200.0,0.00022526,2]
[369131989,1751495432382,-2504.76,0.00022537,2]
[369131990,1751495432392,-200.0,0.00022597,7]
[369131991,1751495432401,-150.0,0.00022672,2]
[369131992,1751495432410,-141.78638822,0.0002272,2]
[369131993,1751495432442,-8.21361178,0.0002272,2]
[369131994,1751495432451,-150.0,0.0002276,2]
[369131995,1751495432461,-150.0,0.00022796,2]
[369131996,1751495432470,-150.0,0.000228,2]
[369131997,1751495432480,-615.65918822,0.0002281,2]
[369131998,1751495432491,-584.34081178,0.0002281,2]
[369131999,1751495432500,-953.42510172,0.00022811,2]
[369132000,1751495432512,-628.01727258,0.00022811,2]
[369132001,1751495432524,-3418.5576257,0.00022811,2]
[369132002,1751495432533,-351.57,0.00022852,2]
[369132003,1751495432543,-150.0,0.00022961,2]
[369132004,1751495432552,-320.42819039,0.00023,7]
[369132005,1751495432561,-200.0,0.00023,2]
[369132006,1751495432570,-518.0,0.00023028,2]
[369132007,1751495432579,-530.0,0.00023028,2]
[369132008,1751495432589,-206.99427441,0.00023028,2]
[369132009,1751495432600,-294.00569559,0.00023028,2]
[369132010,1751495432610,-150.0,0.00023036,2]
[369132011,1751495432619,-150.0,0.00023074,2]
[369132012,1751495432628,-150.0,0.00023102,2]
[369132013,1751495432637,-500.0,0.00023116,2]
[369132014,1751495432647,-150.0,0.00023121,2]
[369132015,1751495432656,-167.41,0.00023128,2]
[369132016,1751495432666,-4.25552962,0.00023139,2]
[369132017,1751495432677,-145.74447038,0.00023139,2]
[369132019,1751495432688,-150.0,0.0002315,2]
[369132020,1751495432697,-150.0,0.0002315,2]
[369132021,1751495432707,-150.0,0.0002323,2]
[369132022,1751495432716,-150.0,0.00023245,2]
[369132023,1751495432725,-150.0,0.00023304,2]
[369132024,1751495432735,-1200.0,0.00023375,2]
[369132025,1751495432745,-1000.0,0.00023376,2]
[369132026,1751495432754,-150.0,0.00023431,2]
[369132027,1751495432764,-150.0,0.00023442,2]
[369132028,1751495432773,-150.0,0.00023445,2]
[369132029,1751495432782,-933.52719693,0.00023468,2]
[369132030,1751495432792,-150.0,0.00023474,2]
[369132031,1751495432801,-150.0,0.00023506,2]
[369132032,1751495432811,-150.0,0.00023636,2]
[369132033,1751495432821,-459.58,0.00023641,2]
[369132034,1751495432830,-160.91,0.00023653,2]
[369132035,1751495432840,-150.0,0.00023703,2]
[369132036,1751495432849,-151.0,0.00023786,2]
[369132037,1751495432858,-151.0,0.00023786,2]
[369132038,1751495432868,-150.0,0.00023796,2]
[369132039,1751495432877,-1500.0,0.000238,2]
[369132040,1751495432887,-1613.08,0.00023808,2]
[369132041,1751495432896,-150.0,0.00023814,2]
[369132042,1751495432905,-155.63,0.00023836,2]
[369132043,1751495432915,-211.20527976,0.00023843,2]
[369132044,1751495432923,-150.0,0.00023898,2]
[369132045,1751495432932,-2965.45665665,0.000239,2]
[369132046,1751495432942,-3738.11518899,0.000239,2]
[369132047,1751495432952,-254.21111898,0.000239,2]
[369132048,1751495432962,-163.27297008,0.000239,2]
[369132049,1751495432975,-228.10167474,0.000239,2]
[369132050,1751495432985,-500.0,0.00023973,2]
[369132051,1751495432994,-500.0,0.00023973,2]
[369132052,1751495433003,-353.53696565,0.00023973,2]
[369132053,1751495433037,-146.46303435,0.00023973,2]
[369132054,1751495433047,-420.82722371,0.00023973,2]
[369132055,1751495433057,-509.33128967,0.00023973,2]
[369132056,1751495433066,-500.0,0.00023973,2]
[369132057,1751495433076,-500.0,0.00023973,2]
[369132058,1751495433085,-150.0,0.00023983,2]
[369132059,1751495433095,-152.25,0.0002399,2]
[369132060,1751495433104,-152.25,0.0002399,2]
[369132061,1751495433114,-36936.9127398,0.00023999,2]
[369132062,1751495433123,-300.0,0.00023999,2]
[369132063,1751495433133,-557.86970037,0.00023999,2]
[369132064,1751495433142,-500.0,0.00023999,2]
[369132065,1751495433152,-199.48552305,0.00023999,2]
[369132066,1751495433161,-500.0,0.00023999,2]
[369132067,1751495433170,-500.0,0.00023999,2]
[369132068,1751495433179,-500.0,0.00023999,2]
[369132069,1751495433189,-500.0,0.00023999,2]
[369132070,1751495433198,-500.0,0.00023999,2]
[369132071,1751495433208,-259.7710447,0.00023999,2]
[369132072,1751495433217,-500.0,0.00023999,2]
[369132073,1751495433227,-500.0,0.00023999,2]
[369132074,1751495433237,-500.0,0.00023999,2]
[369132075,1751495433246,-500.0,0.00023999,2]
[369132076,1751495433256,-500.0,0.00023999,2]
[369132077,1751495433265,-228.34088324,0.00023999,2]
[369132078,1751495433277,-271.65911676,0.00023999,2]
[369132079,1751495433287,-85.11542737,0.00023999,2]
[369132111,1751495438390,-202.88982352,0.00023999,2]
[369132112,1751495438400,-500.0,0.00023999,2]
[369132113,1751495438409,-500.0,0.00023999,2]
[369132114,1751495438418,-608.2907279,0.00023999,2]
[369132115,1751495438427,-200.7175207,0.00023999,2]
[369132116,1751495438436,-500.0,0.00023999,2]
[369132117,1751495438445,-500.0,0.00023999,2]
[369132118,1751495438454,-500.0,0.00023999,2]
[369132119,1751495438463,-500.0,0.00023999,2]
[369132120,1751495438472,-313.95117107,0.00023999,2]
[369132296,1751495440455,-186.04882893,0.00023999,2]
[369132298,1751495440466,-69.59117307,0.00023999,2]
[369132307,1751495440543,-430.40882693,0.00023999,2]
[369132309,1751495440554,-500.0,0.00023999,2]
[369132311,1751495440564,-500.0,0.00023999,2]
[369132312,1751495440573,-500.0,0.00023999,2]
[369132314,1751495440583,-184.11635365,0.00023999,2]